[Event "Mistrovství Čech mládeže 2023 - HD12"]
[Site "Harrachov, Czech Republic"]
[Date "2023.10.21"]
[Round "1.12"]
[White "Bukovskij, Dmitri"]
[Black "Pistulka, Štěpán"]
[Result "1-0"]
[TimeControl "90m + 30s"]
[WhiteElo "1391"]
[BlackElo "1044"]

1. c4 {[%clk 01:30:57]} {[%emt 00:00:03]} Nf6 {[%clk 01:30:42]} {[%emt
00:00:13]} 2. g3 {[%clk 01:31:17]} {[%emt 00:00:15]} g6 {[%clk 01:30:31]}
{[%emt 00:00:36]} 3. d4 {[%clk 01:31:39]} {[%emt 00:00:13]} Bg7 {[%clk
01:29:41]} {[%emt 00:01:14]} 4. Bg2 {[%clk 01:32:00]} {[%emt 00:00:15]} O-O
{[%clk 01:29:16]} {[%emt 00:00:55]} 5. Nc3 {[%clk 01:32:18]} {[%emt 00:00:12]}
d6 {[%clk 01:28:43]} {[%emt 00:00:58]} 6. Bd2 {[%clk 01:32:11]} {[%emt
00:00:41]} c5 {[%clk 01:26:37]} {[%emt 00:02:31]} 7. dxc5 {[%clk 01:32:05]}
{[%emt 00:00:42]} dxc5 {[%clk 01:26:07]} {[%emt 00:00:54]} 8. Bf4 {[%clk
01:32:28]} {[%emt 00:00:13]} Qxd1+ {[%clk 01:24:10]} {[%emt 00:02:21]} 9. Rxd1
{[%clk 01:32:54]} {[%emt 00:00:11]} e6 {[%clk 01:19:31]} {[%emt 00:05:08]} 10.
Bd6 {[%clk 01:32:49]} {[%emt 00:00:35]} Rd8 {[%clk 01:17:41]} {[%emt 00:02:14]}
11. Bxc5 {[%clk 01:33:15]} {[%emt 00:00:09]} Rxd1+ {[%clk 01:17:54]} {[%emt
00:00:14]} 12. Kxd1 {[%clk 01:32:55]} {[%emt 00:00:54]} Bf8 {[%clk 01:17:02]}
{[%emt 00:01:16]} 13. Bxf8 {[%clk 01:33:18]} {[%emt 00:00:13]} Kxf8 {[%clk
01:17:24]} {[%emt 00:00:07]} 14. e3 {[%clk 01:33:17]} {[%emt 00:00:31]} a5
{[%clk 01:16:04]} {[%emt 00:01:43]} 15. Nge2 {[%clk 01:33:12]} {[%emt
00:00:43]} Ra6 {[%clk 01:15:32]} {[%emt 00:00:56]} 16. Kc1 {[%clk 01:33:11]}
{[%emt 00:00:38]} Rd6 {[%clk 01:15:21]} {[%emt 00:00:31]} 17. Rd1 {[%clk
01:33:24]} {[%emt 00:00:26]} Rxd1+ {[%clk 01:13:05]} {[%emt 00:02:07]} 18. Nxd1
{[%clk 01:33:42]} {[%emt 00:00:50]} b6 {[%clk 01:11:46]} {[%emt 00:01:46]} 19.
Nd4 {[%clk 01:33:52]} {[%emt 00:00:24]} e5 {[%clk 01:09:16]} {[%emt 00:02:54]}
20. Nb5 {[%clk 01:33:09]} {[%emt 00:01:18]} Ba6 {[%clk 01:08:16]} {[%emt
00:01:15]} 21. h3 {[%clk 01:32:35]} {[%emt 00:01:19]} Bxb5 {[%clk 01:05:47]}
{[%emt 00:02:49]} 22. cxb5 {[%clk 01:33:04]} Nbd7 {[%clk 01:04:40]} {[%emt
00:01:43]} 23. Nc3 {[%clk 01:33:20]} {[%emt 00:00:20]} Nc5 {[%clk 01:03:55]}
{[%emt 00:01:08]} 24. Kc2 {[%clk 01:33:33]} {[%emt 00:00:20]} e4 {[%clk
01:02:44]} {[%emt 00:01:41]} 25. a3 {[%clk 01:33:07]} {[%emt 00:01:01]} Nd3
{[%clk 01:01:41]} {[%emt 00:01:24]} 26. Nxe4 {[%clk 01:32:32]} {[%emt
00:01:12]} Nxe4 {[%clk 01:01:16]} {[%emt 00:00:49]} 27. Bxe4 {[%clk 01:32:58]}
{[%emt 00:00:11]} Nxf2 {[%clk 01:01:03]} {[%emt 00:00:37]} 28. Bg2 {[%clk
01:33:25]} {[%emt 00:00:08]} f5 {[%clk 00:59:20]} {[%emt 00:02:02]} 29. Kd2
{[%clk 01:33:49]} {[%emt 00:00:17]} Ke7 {[%clk 00:58:43]} {[%emt 00:00:59]} 30.
Ke2 {[%clk 01:33:55]} {[%emt 00:00:32]} Ne4 {[%clk 00:58:51]} {[%emt 00:00:16]}
31. Bxe4 {[%clk 01:34:21]} {[%emt 00:00:12]} fxe4 {[%clk 00:58:42]} {[%emt
00:00:27]} 32. Kd2 {[%clk 01:34:45]} {[%emt 00:00:16]} Ke6 {[%clk 00:58:43]}
{[%emt 00:00:25]} 33. Kc3 {[%clk 01:35:13]} {[%emt 00:00:07]} Kd5 {[%clk
00:58:40]} {[%emt 00:00:26]} 34. a4 {[%clk 01:35:32]} {[%emt 00:00:18]} Kc5
{[%clk 00:57:29]} {[%emt 00:01:31]} 35. h4 {[%clk 01:35:30]} {[%emt 00:00:43]}
h5 {[%clk 00:54:44]} {[%emt 00:03:07]} 36. b3 {[%clk 01:35:48]} {[%emt
00:00:19]} Kd5 {[%clk 00:50:04]} {[%emt 00:05:02]} 37. b4 {[%clk 01:35:40]}
{[%emt 00:00:46]} axb4+ {[%clk 00:49:41]} {[%emt 00:00:47]} 38. Kxb4 {[%clk
01:36:08]} {[%emt 00:00:07]} Kd6 {[%clk 00:49:26]} {[%emt 00:00:40]} 39. a5
{[%clk 01:36:29]} {[%emt 00:00:15]} Kc7 {[%clk 00:49:21]} {[%emt 00:00:28]} 40.
a6 {[%clk 01:36:57]} {[%emt 00:00:09]} 1-0

[Event "Mistrovství Čech mládeže 2023 - HD12"]
[Site "Harrachov, Czech Republic"]
[Date "2023.10.21"]
[Round "1.13"]
[White "Sehnoutka, Vít"]
[Black "Gernert, Tomáš"]
[Result "0-1"]
[TimeControl "90m + 30s"]
[WhiteElo "1041"]
[BlackElo "1389"]

1. d4 {[%clk 01:30:20]} {[%emt 00:00:40]} Nf6 {[%clk 01:30:52]} {[%emt
00:00:08]} 2. Bf4 {[%clk 01:30:20]} {[%emt 00:00:30]} c6 {[%clk 01:31:18]}
{[%emt 00:00:04]} 3. e3 {[%clk 01:30:38]} {[%emt 00:00:11]} Qb6 {[%clk
01:31:41]} {[%emt 00:00:08]} 4. Qc1 {[%clk 01:30:23]} {[%emt 00:00:45]} d5
{[%clk 01:32:06]} {[%emt 00:00:06]} 5. Nf3 {[%clk 01:30:35]} {[%emt 00:00:17]}
Bf5 {[%clk 01:29:52]} {[%emt 00:02:44]} 6. Nbd2 {[%clk 01:29:40]} {[%emt
00:01:25]} e6 {[%clk 01:27:58]} {[%emt 00:02:24]} 7. Be2 {[%clk 01:29:36]}
{[%emt 00:00:33]} Nbd7 {[%clk 01:26:59]} {[%emt 00:01:30]} 8. O-O {[%clk
01:29:17]} {[%emt 00:00:49]} c5 {[%clk 01:26:51]} {[%emt 00:00:39]} 9. c3
{[%clk 01:29:32]} {[%emt 00:00:14]} Be7 {[%clk 01:25:53]} {[%emt 00:01:27]} 10.
Ne5 {[%clk 01:29:03]} {[%emt 00:01:00]} Nxe5 {[%clk 01:19:55]} {[%emt
00:06:28]} 11. Bxe5 {[%clk 01:29:21]} {[%emt 00:00:11]} c4 {[%clk 01:19:58]}
{[%emt 00:00:28]} 12. Nf3 {[%clk 01:29:10]} {[%emt 00:00:40]} Ne4 {[%clk
01:18:40]} {[%emt 00:01:49]} 13. Bxg7 {[%clk 01:28:56]} {[%emt 00:00:43]} Rg8
{[%clk 01:18:57]} {[%emt 00:00:14]} 14. Be5 {[%clk 01:28:49]} {[%emt 00:00:35]}
Bh3 {[%clk 01:17:45]} {[%emt 00:01:43]} 15. Bg3 {[%emt 00:00:22]} Nxg3 {[%clk
01:17:18]} {[%emt 00:00:55]} 16. hxg3 {[%clk 01:29:10]} {[%emt 00:00:19]} Bg4
{[%clk 01:17:10]} {[%emt 00:00:39]} 17. Qd2 {[%clk 01:29:21]} {[%emt 00:00:17]}
Bd6 {[%clk 01:13:34]} {[%emt 00:04:07]} 18. Nh4 {[%clk 01:28:07]} {[%emt
00:01:44]} h5 {[%clk 01:13:10]} {[%emt 00:00:56]} 19. f3 {[%clk 01:26:26]}
{[%emt 00:02:10]} Bxg3 {[%clk 01:12:40]} {[%emt 00:01:00]} 20. fxg4 {[%clk
01:26:39]} {[%emt 00:00:17]} hxg4 {[%clk 01:11:40]} {[%emt 00:01:31]} 21. Nf5
{[%clk 01:23:37]} {[%emt 00:03:32]} exf5 {[%clk 01:10:51]} {[%emt 00:01:19]} 22.
Rxf5 {[%clk 01:22:23]} {[%emt 00:01:43]} Qh6 {[%clk 01:10:37]} {[%emt
00:00:45]} 0-1

[Event "Mistrovství Čech mládeže 2023 - HD12"]
[Site "Harrachov, Czech Republic"]
[Date "2023.10.21"]
[Round "1.14"]
[White "Křivka, Lukáš"]
[Black "Topenčíková, Ellen"]
[Result "1-0"]
[TimeControl "90m + 30s"]
[WhiteElo "1386"]
[BlackElo "1018"]

1. d4 {[%clk 01:30:52]} {[%emt 00:00:07]} d5 {[%clk 01:30:43]} {[%emt
00:00:17]} 2. c4 {[%clk 01:30:47]} {[%emt 00:00:35]} e6 {[%clk 01:30:27]}
{[%emt 00:00:46]} 3. Nc3 {[%clk 01:31:04]} {[%emt 00:00:12]} Bb4 {[%clk
01:30:18]} {[%emt 00:00:40]} 4. Bd2 {[%clk 01:30:07]} {[%emt 00:01:26]} Nf6
{[%clk 01:30:21]} {[%emt 00:00:28]} 5. Nf3 {[%clk 01:29:01]} {[%emt 00:01:35]}
Bxc3 {[%clk 01:29:44]} {[%emt 00:01:08]} 6. Bxc3 {[%clk 01:28:09]} {[%emt
00:01:22]} dxc4 {[%clk 01:28:26]} {[%emt 00:01:49]} 7. e3 {[%clk 01:28:10]}
{[%emt 00:00:28]} O-O {[%clk 01:27:44]} {[%emt 00:01:12]} 8. Bxc4 {[%clk
01:27:29]} {[%emt 00:01:10]} Bd7 {[%clk 01:26:53]} {[%emt 00:01:22]} 9. O-O
{[%clk 01:26:04]} {[%emt 00:01:55]} Ne4 {[%clk 01:24:49]} {[%emt 00:02:34]} 10.
Qc2 {[%clk 01:13:18]} {[%emt 00:13:17]} Nxc3 {[%clk 01:19:04]} {[%emt
00:06:13]} 11. bxc3 {[%clk 01:13:06]} {[%emt 00:00:42]} Bc6 {[%clk 01:19:06]}
{[%emt 00:00:29]} 12. Ne5 {[%clk 01:12:16]} {[%emt 00:01:20]} Be8 {[%clk
01:17:14]} {[%emt 00:02:22]} 13. Nd3 {[%clk 01:01:22]} {[%emt 00:11:24]} Nc6
{[%clk 01:14:24]} {[%emt 00:03:20]} 14. Nf4 {[%clk 01:00:48]} {[%emt 00:01:04]}
Qg5 {[%clk 01:07:41]} {[%emt 00:07:13]} 15. Rac1 {[%clk 00:52:37]} {[%emt
00:08:42]} Bd7 {[%clk 00:58:31]} {[%emt 00:09:39]} 16. Nd3 {[%clk 00:44:04]}
{[%emt 00:09:04]} e5 {[%clk 00:57:02]} {[%emt 00:01:59]} 17. Nxe5 {[%clk
00:38:36]} {[%emt 00:05:57]} Nxe5 {[%clk 00:57:11]} {[%emt 00:00:21]} 18. dxe5
{[%clk 00:38:37]} {[%emt 00:00:29]} Bh3 {[%clk 00:57:23]} {[%emt 00:00:17]} 19.
Qe4 {[%clk 00:37:50]} {[%emt 00:01:17]} c6 {[%clk 00:54:20]} {[%emt 00:03:34]}
20. e6 {[%clk 00:36:13]} {[%emt 00:02:07]} fxe6 {[%clk 00:51:41]} {[%emt
00:03:08]} 21. Bxe6+ {[%clk 00:36:18]} {[%emt 00:00:26]} Bxe6 {[%clk 00:51:47]}
{[%emt 00:00:24]} 22. Qxe6+ {[%clk 00:36:35]} {[%emt 00:00:13]} Kh8 {[%clk
00:52:07]} {[%emt 00:00:10]} 23. Qd7 {[%clk 00:33:39]} {[%emt 00:03:26]} Rab8
{[%clk 00:51:56]} {[%emt 00:00:41]} 24. Rb1 {[%clk 00:33:13]} {[%emt 00:00:57]}
Rfd8 {[%clk 00:51:29]} {[%emt 00:00:56]} 25. Qf7 {[%clk 00:32:31]} {[%emt
00:01:11]} Rf8 {[%clk 00:51:19]} {[%emt 00:00:41]} 26. Rxb7 {[%clk 00:29:08]}
{[%emt 00:03:53]} Rxb7 {[%clk 00:51:21]} {[%emt 00:00:28]} 27. Qxf8# {[%clk
00:28:59]} {[%emt 00:00:07]} 1-0

[Event "Mistrovství Čech mládeže 2023 - HD12"]
[Site "Harrachov, Czech Republic"]
[Date "2023.10.22"]
[Round "2.1"]
[White "Honcharov, Makar"]
[Black "Zischka, Vít"]
[Result "1-0"]
[TimeControl "90m + 30s"]
[WhiteElo "1872"]
[BlackElo "1274"]

1. e4 {[%clk 01:30:40]} {[%emt 00:00:19]} e5 {[%clk 01:30:52]} {[%emt
00:00:09]} 2. Nf3 {[%clk 01:31:05]} {[%emt 00:00:04]} Nc6 {[%clk 01:31:15]}
{[%emt 00:00:07]} 3. Bb5 {[%clk 01:31:29]} {[%emt 00:00:06]} d6 {[%clk
01:31:39]} {[%emt 00:00:06]} 4. d4 {[%clk 01:31:54]} {[%emt 00:00:05]} exd4
{[%clk 01:31:45]} {[%emt 00:00:24]} 5. Nxd4 {[%clk 01:32:19]} {[%emt 00:00:05]}
Bd7 {[%clk 01:32:02]} {[%emt 00:00:14]} 6. Nc3 {[%clk 01:32:37]} {[%emt
00:00:11]} Nf6 {[%clk 01:31:59]} {[%emt 00:00:33]} 7. Be3 {[%clk 01:32:49]}
{[%emt 00:00:18]} Be7 {[%clk 01:30:28]} {[%emt 00:02:01]} 8. h3 {[%clk
01:32:43]} {[%emt 00:00:34]} O-O {[%clk 01:30:42]} {[%emt 00:00:18]} 9. O-O
{[%clk 01:33:03]} {[%emt 00:00:10]} a6 {[%clk 01:30:35]} {[%emt 00:00:37]} 10.
Be2 {[%clk 01:33:24]} {[%emt 00:00:08]} Re8 {[%clk 01:29:54]} {[%emt 00:01:12]}
11. f4 {[%clk 01:32:59]} {[%emt 00:00:55]} Bf8 {[%clk 01:27:56]} {[%emt
00:02:28]} 12. Bf3 {[%clk 01:30:20]} {[%emt 00:03:09]} Nxd4 {[%clk 01:25:23]}
{[%emt 00:03:03]} 13. Bxd4 {[%clk 01:30:40]} {[%emt 00:00:09]} Bc6 {[%clk
01:25:10]} {[%emt 00:00:45]} 14. Re1 {[%clk 01:24:32]} {[%emt 00:06:36]} Qd7
{[%clk 01:23:01]} {[%emt 00:02:37]} 15. Bxf6 {[%clk 01:17:27]} {[%emt
00:07:39]} gxf6 {[%clk 01:23:22]} {[%emt 00:00:08]} 16. Bg4 {[%clk 01:17:51]}
{[%emt 00:00:05]} Qe7 {[%clk 01:23:09]} {[%emt 00:00:41]} 17. Bf5 {[%clk
01:18:18]} {[%emt 00:00:06]} Bd7 {[%clk 01:22:49]} {[%emt 00:00:51]} 18. Nd5
{[%clk 01:18:28]} {[%emt 00:00:19]} Qd8 {[%clk 01:21:52]} {[%emt 00:01:26]} 19.
Bxd7 {[%clk 01:18:56]} {[%emt 00:00:03]} Bg7 {[%clk 01:21:05]} {[%emt
00:01:17]} 20. Bxe8 {[%clk 01:18:08]} {[%emt 00:01:18]} c6 {[%clk 01:20:45]}
{[%emt 00:00:50]} 21. Qg4 {[%clk 01:18:33]} {[%emt 00:00:05]} cxd5 {[%clk
01:19:25]} {[%emt 00:01:50]} 22. exd5 {[%clk 01:18:33]} {[%emt 00:00:29]} Qb6+
{[%clk 01:18:44]} {[%emt 00:01:12]} 23. Kh1 {[%clk 01:18:34]} {[%emt 00:00:29]}
Qxb2 {[%clk 01:15:02]} {[%emt 00:04:12]} 24. Qd7 {[%clk 01:18:57]} {[%emt
00:00:06]} 1-0

[Event "Mistrovství Čech mládeže 2023 - HD12"]
[Site "Harrachov, Czech Republic"]
[Date "2023.10.22"]
[Round "2.2"]
[White "Šára, David"]
[Black "Zrůst, Lukáš"]
[Result "0-1"]
[TimeControl "90m + 30s"]
[WhiteElo "1320"]
[BlackElo "1685"]

1. e4 {[%clk 01:30:57]} {[%emt 00:00:02]} c5 {[%clk 01:30:50]} {[%emt
00:00:10]} 2. c3 {[%clk 01:31:22]} {[%emt 00:00:06]} e6 {[%clk 01:30:43]}
{[%emt 00:00:37]} 3. d4 {[%clk 01:31:13]} {[%emt 00:00:39]} Nf6 {[%clk
01:30:44]} {[%emt 00:00:28]} 4. e5 {[%clk 01:29:57]} {[%emt 00:01:47]} Nd5
{[%clk 01:30:06]} {[%emt 00:01:08]} 5. Bc4 {[%clk 01:30:02]} {[%emt 00:00:25]}
Nb6 {[%clk 01:29:26]} {[%emt 00:01:10]} 6. Bb3 {[%clk 01:29:51]} {[%emt
00:00:42]} Nc6 {[%clk 01:28:25]} {[%emt 00:01:30]} 7. Nf3 {[%clk 01:29:14]}
{[%emt 00:01:06]} d5 {[%clk 01:25:13]} {[%emt 00:03:43]} 8. exd6 {[%clk
01:27:05]} {[%emt 00:02:40]} Qxd6 {[%clk 01:24:32]} {[%emt 00:01:08]} 9. O-O
{[%clk 01:26:24]} {[%emt 00:01:12]} Be7 {[%clk 01:18:36]} {[%emt 00:06:27]} 10.
Na3 {[%clk 01:24:55]} {[%emt 00:02:00]} O-O {[%clk 01:14:53]} {[%emt 00:04:11]}
11. Nb5 {[%clk 01:20:22]} {[%emt 00:05:03]} Qb8 {[%clk 01:11:21]} {[%emt
00:04:04]} 12. g3 {[%clk 01:18:42]} {[%emt 00:02:10]} Bd7 {[%clk 01:10:06]}
{[%emt 00:01:44]} 13. Bf4 {[%clk 01:18:10]} {[%emt 00:01:02]} Qd8 {[%clk
01:09:59]} {[%emt 00:00:36]} 14. Bc7 {[%clk 01:16:02]} {[%emt 00:02:38]} Qc8
{[%clk 01:10:00]} {[%emt 00:00:30]} 15. Ne5 {[%clk 01:12:52]} {[%emt 00:03:39]}
Nxe5 {[%clk 01:09:25]} {[%emt 00:01:07]} 16. Bxe5 {[%clk 01:11:41]} {[%emt
00:01:41]} Bxb5 {[%clk 01:09:39]} {[%emt 00:00:15]} 17. Bc2 {[%clk 01:10:43]}
{[%emt 00:01:29]} f6 {[%clk 01:08:56]} {[%emt 00:01:13]} 18. Qh5 {[%clk
01:10:32]} {[%emt 00:00:37]} f5 {[%clk 01:08:16]} {[%emt 00:01:12]} 19. g4
{[%clk 01:09:33]} {[%emt 00:01:30]} Be8 {[%clk 01:07:54]} {[%emt 00:00:51]} 20.
Qh3 {[%clk 01:09:29]} {[%emt 00:00:33]} Bg6 {[%emt 00:02:11]} 0-1

[Event "Mistrovství Čech mládeže 2023 - HD12"]
[Site "Harrachov, Czech Republic"]
[Date "2023.10.22"]
[Round "2.3"]
[White "Kolář, Edvard"]
[Black "Remizov, Artem"]
[Result "0-1"]
[TimeControl "90m + 30s"]
[WhiteElo "1473"]
[BlackElo "1259"]

1. d4 {[%clk 01:30:57]} {[%emt 00:00:01]} d5 {[%clk 01:30:56]} {[%emt
00:00:05]} 2. Nf3 {[%clk 01:31:17]} {[%emt 00:00:10]} Nc6 {[%clk 01:31:16]}
{[%emt 00:00:09]} 3. e3 {[%clk 01:31:00]} {[%emt 00:00:46]} Nf6 {[%clk
01:31:18]} {[%emt 00:00:30]} 4. Bd3 {[%clk 01:30:14]} {[%emt 00:01:15]} e6
{[%clk 01:31:08]} {[%emt 00:00:41]} 5. b3 {[%clk 01:29:59]} {[%emt 00:00:46]}
Bd6 {[%clk 01:30:53]} {[%emt 00:00:44]} 6. Bb2 {[%clk 01:29:06]} {[%emt
00:01:23]} O-O {[%clk 01:30:31]} {[%emt 00:00:52]} 7. O-O {[%clk 01:28:35]}
{[%emt 00:00:59]} Re8 {[%clk 01:30:24]} {[%emt 00:00:38]} 8. c4 {[%clk
01:26:03]} {[%emt 00:03:03]} b6 {[%clk 01:29:29]} {[%emt 00:01:26]} 9. cxd5
{[%clk 01:25:38]} {[%emt 00:00:54]} exd5 {[%clk 01:29:08]} {[%emt 00:00:50]} 10.
a3 {[%clk 01:23:45]} {[%emt 00:02:25]} Bg4 {[%clk 01:27:19]} {[%emt 00:02:19]}
11. Bb5 {[%clk 01:22:01]} {[%emt 00:02:14]} Bd7 {[%clk 01:26:43]} {[%emt
00:01:05]} 12. Nbd2 {[%clk 01:20:59]} {[%emt 00:01:31]} Ne7 {[%clk 01:22:24]}
{[%emt 00:04:50]} 13. Bxd7 {[%clk 01:19:18]} {[%emt 00:02:11]} Qxd7 {[%clk
01:22:46]} {[%emt 00:00:08]} 14. Rc1 {[%clk 01:17:34]} {[%emt 00:02:12]} Nf5
{[%clk 01:19:28]} {[%emt 00:03:49]} 15. Qc2 {[%clk 01:12:09]} {[%emt 00:05:55]}
Ne4 {[%clk 01:19:24]} {[%emt 00:00:36]} 16. Ne5 {[%clk 01:05:21]} {[%emt
00:07:17]} Bxe5 {[%clk 01:18:05]} {[%emt 00:01:48]} 17. dxe5 {[%clk 01:04:13]}
{[%emt 00:01:39]} Nc5 {[%clk 01:13:35]} {[%emt 00:05:00]} 18. Bd4 {[%clk
00:57:18]} {[%emt 00:07:23]} Nxd4 {[%clk 01:09:42]} {[%emt 00:04:25]} 19. exd4
{[%emt 00:00:14]} Ne6 {[%clk 01:09:59]} {[%emt 00:00:11]} 20. Qf5 {[%clk
00:55:13]} {[%emt 00:02:34]} Re7 {[%clk 01:09:15]} {[%emt 00:01:33]} 21. Qg4
{[%clk 00:53:52]} {[%emt 00:01:44]} Qb5 {[%clk 01:08:01]} {[%emt 00:01:51]} 22.
Rc3 {[%clk 00:52:00]} {[%emt 00:02:16]} c5 {[%clk 01:07:35]} {[%emt 00:01:01]}
23. dxc5 {[%clk 00:51:00]} {[%emt 00:01:30]} bxc5 {[%clk 01:07:57]} {[%emt
00:00:09]} 24. Rg3 {[%clk 00:50:04]} {[%emt 00:01:21]} Kf8 {[%clk 01:07:15]}
{[%emt 00:01:16]} 25. f4 {[%clk 00:48:13]} {[%emt 00:02:21]} g6 {[%clk
01:03:06]} {[%emt 00:04:40]} 26. f5 {[%clk 00:47:55]} {[%emt 00:00:48]} Nd4
{[%clk 01:01:46]} {[%emt 00:01:50]} 27. fxg6 {[%clk 00:45:22]} {[%emt
00:03:03]} hxg6 {[%clk 01:02:06]} {[%emt 00:00:09]} 28. Kh1 {[%clk 00:44:50]}
{[%emt 00:00:56]} Qe2 {[%clk 00:55:03]} {[%emt 00:07:40]} 29. Qxg6 {[%clk
00:43:13]} {[%emt 00:02:08]} Qxf1+ {[%clk 00:54:31]} {[%emt 00:01:02]} 30. Nxf1
{[%emt 00:00:05]} fxg6 {[%clk 00:54:54]} {[%emt 00:00:05]} 31. Rxg6 {[%clk
00:44:05]} {[%emt 00:00:04]} Rxe5 {[%clk 00:55:04]} {[%emt 00:00:20]} 32. Rh6
{[%clk 00:44:26]} {[%emt 00:00:09]} Re1 {[%clk 00:54:04]} {[%emt 00:01:30]} 33.
Kg1 {[%clk 00:44:47]} {[%emt 00:00:08]} Kg7 {[%clk 00:54:11]} {[%emt 00:00:24]}
0-1